[Event "Czech Open-E Teams 2022"]
[Site "Pardubice"]
[Date "2022.07.17"]
[Round "6.37"]
[White "Balazs, Balint"]
[Black "Brejnik, Gustav"]
[Result "1/2-1/2"]
[ECO "D00"]
[WhiteElo "2174"]
[BlackElo "2292"]
[Annotator "ChessBase"]
[PlyCount "240"]
[EventDate "2022.07.14"]
[EventType "team-tourn"]
[EventCountry "CZE"]
[SourceTitle "playchess.com"]
[Source "ChessBase"]
[SourceQuality "1"]
[TimeControl "5400+30"]

1. d4 {[%emt 0:00:06]} d5 {[%emt 0:00:37]} 2. Nc3 {[%emt 0:00:14]} Nf6 {[%emt 0:00:00]} 3. Bf4 {[%emt 0:00:06]} e6 {[%emt 0:01:07]} 4. Nb5 {[%emt 0:00:32]} Na6 {[%emt 0:00:08]} 5. e3 {[%emt 0:00:05]} Be7 {[%emt 0:01:36]} 6. Nf3 {[%emt 0:00:36]} O-O {[%emt 0:00:14]} 7. Be2 {[%emt 0:00:38]} c6 {[%emt 0:06:46]} 8. Nc3 {[%emt 0:00:09]} c5 {[%emt 0:00:05]} 9. h3 {[%emt 0:03:47]} Bd7 {[%emt 0:05:58]} 10. O-O {[%emt 0:01:08]} Qb6 {[%emt 0:04:58]} 11. Qd2 {[%emt 0:02:57]} Rfd8 {[%emt 0:01:23]} 12. a3 {[%emt 0:03:39]} Be8 {[%emt 0:02:18]} 13. Ne5 {[%emt 0:03:17]} Rac8 {[%emt 0:04:10]} 14. Rab1 {[%emt 0:03:53]} cxd4 {[%emt 0:20:11]} 15. exd4 {[%emt 0:00:08]} Nc7 {[%emt 0:02:17]} 16. Bd3 {[%emt 0:04:08]} Nb5 {[%emt 0:09:47]} 17. Ne2 {[%emt 0:00:25]} Nd6 {[%emt 0:00:46]} 18. c3 {[%emt 0:01:16]} Bb5 {[%emt 0:01:02]} 19. Nc1 {[%emt 0:07:08]} Nfe4 {[%emt 0:03:20]} 20. Qe2 {[%emt 0:01:23]} Ba6 {[%emt 0:07:38]} 21. Bxa6 {[%emt 0:00:43]} Qxa6 {[%emt 0:04:02]} 22. Qxa6 {[%emt 0:00:09]} bxa6 {[%emt 0:00:03]} 23. f3 {[%emt 0:02:29]} Nf6 {[%emt 0:00:49]} 24. Ncd3 {[%emt 0:00:31]} Nh5 {[%emt 0:04:12]} 25. Bh2 {[%emt 0:03:17]} f6 {[%emt 0:00:19]} 26. Ng4 {[%emt 0:00:07]} Nc4 {[%emt 0:00:17]} 27. Rfd1 {[%emt 0:01:37]} Kf7 {[%emt 0:07:41]} 28. Kf2 {[%emt 0:00:32]} a5 {[%emt 0:00:44]} 29. Ne3 {[%emt 0:01:07]} g5 {[%emt 0:00:36]} 30. g4 {[%emt 0:02:11]} Ng7 {[%emt 0:00:11]} 31. Ke2 {[%emt 0:04:27]} h5 {[%emt 0:00:42]} 32. Rh1 {[%emt 0:05:16]} Rh8 {[%emt 0:00:10]} 33. Bg3 {[%emt 0:05:05]} Ne8 {[%emt 0:00:36]} 34. h4 {[%emt 0:04:48]} hxg4 {[%emt 0:00:34]} 35. Nxg4 {[%emt 0:00:44]} gxh4 {[%emt 0:00:15]} 36. Rxh4 {[%emt 0:00:54]} Rxh4 {[%emt 0:00:06]} 37. Bxh4 {[%emt 0:00:04]} Ned6 {[%emt 0:00:58]} 38. Rh1 {[%emt 0:02:12]} Rh8 {[%emt 0:01:01]} 39. Rh2 {[%emt 0:00:23]} Nf5 {[%emt 0:02:54]} 40. Bf2 {[%emt 0:01:03]} Rb8 {[%emt 0:00:48]} 41. b4 {[%emt 0:04:06]} Nxa3 {[%emt 0:00:35]} 42. Nf4 {[%emt 0:00:16]} axb4 {[%emt 0:03:19]} 43. cxb4 {[%emt 0:00:40]} Rxb4 {[%emt 0:00:53]} 44. Nh6+ {[%emt 0:00:26]} Nxh6 {[%emt 0:00:35]} 45. Rxh6 {[%emt 0:00:04]} Kg7 {[%emt 0:02:06]} 46. Rg6+ {[%emt 0:00:19]} Kf7 {[%emt 0:00:13]} 47. Rh6 {[%emt 0:00:02]} Kg7 {[%emt 0:00:36]} 48. Rg6+ {[%emt 0:00:02]} Kh7 {[%emt 0:00:05]} 49. Rg2 {[%emt 0:03:04]} Rb2+ {[%emt 0:00:29]} 50. Kd3 {[%emt 0:01:02]} Rb3+ {[%emt 0:00:40]} 51. Ke2 {[%emt 0:00:02]} Rb2+ {[%emt 0:00:04]} 52. Kd3 {[%emt 0:00:18]} Nc4 {[%emt 0:01:16]} 53. Nxe6 {[%emt 0:01:14]} Bb4 {[%emt 0:00:52]} 54. Rh2+ {[%emt 0:00:05]} Kg8 {[%emt 0:00:17]} 55. Bg3 {[%emt 0:00:10]} Rb3+ {[%emt 0:00:24]} 56. Kc2 {[%emt 0:00:31]} Rc3+ {[%emt 0:00:47]} 57. Kb1 {[%emt 0:00:39]} Rb3+ {[%emt 0:00:09]} 58. Kc2 {[%emt 0:00:14]} Rxf3 {[%emt 0:00:09]} 59. Bh4 {[%emt 0:01:46]} Rc3+ {[%emt 0:01:27]} 60. Kb1 {[%emt 0:00:09]} Rb3+ {[%emt 0:00:04]} 61. Ka2 {[%emt 0:00:11]} Ra3+ {[%emt 0:00:22]} 62. Kb1 {[%emt 0:00:05]} Bd6 {[%emt 0:01:41]} 63. Rf2 {[%emt 0:01:14]} Rb3+ {[%emt 0:00:12]} 64. Ka2 {[%emt 0:00:02]} Ra3+ {[%emt 0:00:04]} 65. Kb1 {[%emt 0:00:04]} Rh3 {[%emt 0:01:30]} 66. Bxf6 {[%emt 0:00:58]} Rf3 {[%emt 0:01:22]} 67. Rg2+ {[%emt 0:01:31]} Rg3 {[%emt 0:00:04]} 68. Rf2 {[%emt 0:00:34]} Rg1+ {[%emt 0:00:48]} 69. Ka2 {[%emt 0:00:40]} Kf7 {[%emt 0:00:12]} 70. Nc5 {[%emt 0:03:12]} Kg6 {[%emt 0:01:02]} 71. Bd8 {[%emt 0:02:43]} Rd1 {[%emt 0:00:49]} 72. Rf6+ {[%emt 0:00:47]} Kh5 {[%emt 0:00:31]} 73. Rf5+ {[%emt 0:00:42]} Kg4 {[%emt 0:00:03]} 74. Rxd5 {[%emt 0:00:12]} Bxc5 {[%emt 0:00:19]} 75. Rxc5 {[%emt 0:00:56]} Rxd4 {[%emt 0:00:05]} 76. Bf6 {[%emt 0:00:40]} Rf4 {[%emt 0:00:20]} 77. Bc3 {[%emt 0:00:29]} Nb6 {[%emt 0:00:32]} 78. Ra5 {[%emt 0:01:12]} Rc4 {[%emt 0:01:07]} 79. Kb3 {[%emt 0:01:01]} Rc7 {[%emt 0:00:03]} 80. Bd4 {[%emt 0:00:33]} Nc8 {[%emt 0:00:19]} 81. Kb4 {[%emt 0:01:18]} Kf3 {[%emt 0:00:10]} 82. Rc5 {[%emt 0:00:29]} Rb7+ {[%emt 0:00:23]} 83. Rb5 {[%emt 0:00:26]} Rd7 {[%emt 0:00:15]} 84. Bc5 {[%emt 0:00:17]} Ke4 {[%emt 0:00:16]} 85. Rb8 {[%emt 0:00:23]} Rc7 {[%emt 0:00:14]} 86. Rxc8 {[%emt 0:03:00]} Rxc8 {[%emt 0:00:05]} 87. Bxa7 {[%emt 0:00:04]} Kd5 {[%emt 0:00:24]} 88. Bf2 {[%emt 0:01:25]} Rc2 {[%emt 0:00:42]} 89. Bg1 {[%emt 0:00:33]} Rg2 {[%emt 0:01:12]} 90. Ba7 {[%emt 0:00:14]} Rg4+ {[%emt 0:00:46]} 91. Kb5 {[%emt 0:00:38]} Rg7 {[%emt 0:00:24]} 92. Kb6 {[%emt 0:02:10]} Rg2 {[%emt 0:01:59]} 93. Kb7 {[%emt 0:00:11]} Rb2+ {[%emt 0:00:12]} 94. Ka8 {[%emt 0:00:09]} Kc6 {[%emt 0:00:10]} 95. Bb8 {[%emt 0:00:10]} Kd7 {[%emt 0:00:36]} 96. Ba7 {[%emt 0:02:52]} Kc8 {[%emt 0:00:26]} 97. Bd4 {[%emt 0:00:18]} Rb8+ {[%emt 0:00:15]} 98. Ka7 {[%emt 0:00:05]} Rb4 {[%emt 0:00:03]} 99. Bf2 {[%emt 0:01:20]} Kc7 {[%emt 0:00:41]} 100. Ka8 {[%emt 0:01:21]} Rb8+ {[%emt 0:00:16]} 101. Ka7 {[%emt 0:00:09]} Rb2 {[%emt 0:00:03]} 102. Bg3+ {[%emt 0:00:07]} Kc6 {[%emt 0:00:05]} 103. Ka8 {[%emt 0:00:19]} Kb6 {[%emt 0:00:20]} 104. Bf4 {[%emt 0:00:33]} Re2 {[%emt 0:00:16]} 105. Bg3 {[%emt 0:00:32]} Ra2+ {[%emt 0:00:42]} 106. Kb8 {[%emt 0:00:04]} Rg2 {[%emt 0:00:04]} 107. Bc7+ {[%emt 0:00:06]} Kc6 {[%emt 0:00:09]} 108. Bf4 {[%emt 0:00:14]} Rg4 {[%emt 0:00:40]} 109. Be5 {[%emt 0:00:17]} Kb6 {[%emt 0:00:31]} 110. Bc7+ {[%emt 0:00:18]} Ka6 {[%emt 0:00:05]} 111. Be5 {[%emt 0:00:17]} Re4 {[%emt 0:00:11]} 112. Bg3 {[%emt 0:00:11]} Re7 {[%emt 0:00:08]} 113. Ka8 {[%emt 0:00:20]} Rg7 {[%emt 0:00:27]} 114. Bf4 {[%emt 0:00:12]} Kb6 {[%emt 0:00:18]} 115. Be3+ {[%emt 0:00:10]} Kc6 {[%emt 0:00:05]} 116. Bf4 {[%emt 0:00:25]} Rg4 {[%emt 0:00:41]} 117. Bh2 {[%emt 0:00:36]} Rb4 {[%emt 0:00:00]} 118. Bg3 {[%emt 0:00:26]} Kd7 {[%emt 0:00:00]} 119. Bf2 {[%emt 0:00:20]} Kc8 {[%emt 0:00:07]} 120. Ba7 {[%emt 0:00:40]} Ra4 1/2-1/2

[Event "Czech Open-E Teams 2022"]
[Site "Pardubice"]
[Date "2022.07.17"]
[Round "6.38"]
[White "Parizek, Vojtech"]
[Black "Bertram, Karsten"]
[Result "1-0"]
[ECO "B01"]
[WhiteElo "2217"]
[BlackElo "2062"]
[Annotator "ChessBase"]
[PlyCount "165"]
[EventDate "2022.07.14"]
[EventType "team-tourn"]
[EventCountry "CZE"]
[SourceTitle "playchess.com"]
[Source "ChessBase"]
[SourceQuality "1"]
[TimeControl "5400+30"]

1. e4 {[%emt 0:03:51]} d5 {[%emt 0:01:40]} 2. exd5 {[%emt 0:00:20]} Qxd5 {[%emt 0:00:01]} 3. Nc3 {[%emt 0:00:17]} Qa5 {[%emt 0:00:05]} 4. d4 {[%emt 0:02:14]} Nf6 {[%emt 0:00:06]} 5. Nf3 {[%emt 0:02:49]} Bg4 {[%emt 0:04:03]} 6. h3 {[%emt 0:02:11]} Bh5 {[%emt 0:18:53]} 7. g4 {[%emt 0:02:29]} Bg6 {[%emt 0:00:14]} 8. Ne5 {[%emt 0:02:26]} c6 {[%emt 0:36:45]} 9. Bf4 {[%emt 0:12:20]} Ne4 {[%emt 0:16:26]} 10. Nc4 {[%emt 0:12:28]} Nxc3 {[%emt 0:00:44]} 11. Nxa5 {[%emt 0:01:52]} Nxd1 {[%emt 0:00:02]} 12. Kxd1 {[%emt 0:00:41]} b6 {[%emt 0:01:13]} 13. Nc4 {[%emt 0:01:47]} Be4 {[%emt 0:01:31]} 14. Rg1 {[%emt 0:00:24]} Nd7 {[%emt 0:00:18]} 15. Nd2 {[%emt 0:02:47]} Bg6 {[%emt 0:00:04]} 16. Ba6 {[%emt 0:01:33]} e5 {[%emt 0:01:33]} 17. Re1 {[%emt 0:05:15]} Kd8 {[%emt 0:00:01]} 18. dxe5 {[%emt 0:01:35]} Nc5 {[%emt 0:00:09]} 19. Bc4 {[%emt 0:01:03]} b5 {[%emt 0:00:12]} 20. Bf1 {[%emt 0:02:05]} Be7 {[%emt 0:00:59]} 21. Bg2 {[%emt 0:01:04]} Rc8 {[%emt 0:00:04]} 22. Ne4 {[%emt 0:01:41]} h5 {[%emt 0:01:31]} 23. g5 {[%emt 0:02:01]} Ne6 {[%emt 0:01:15]} 24. Be3 {[%emt 0:03:40]} Bxe4 {[%emt 0:01:57]} 25. Bxe4 {[%emt 0:02:58]} Bxg5 {[%emt 0:03:20]} 26. Bxa7 {[%emt 0:02:31]} c5 {[%emt 0:00:09]} 27. Bb7 {[%emt 0:01:39]} Kc7 {[%emt 0:00:36]} 28. Bxc8 {[%emt 0:01:25]} Rxc8 {[%emt 0:00:01]} 29. b4 {[%emt 0:08:40]} Rd8+ {[%emt 0:02:05]} 30. Ke2 {[%emt 0:00:06]} Nd4+ {[%emt 0:01:08]} 31. Kf1 {[%emt 0:00:29]} Nxc2 {[%emt 0:00:20]} 32. Bxc5 {[%emt 0:02:15]} Nxa1 {[%emt 0:02:23]} 33. Rxa1 {[%emt 0:00:07]} Rd3 {[%emt 0:00:15]} 34. a4 {[%emt 0:01:34]} Rxh3 {[%emt 0:03:12]} 35. Kg2 {[%emt 0:00:07]} Rd3 {[%emt 0:00:05]} 36. axb5 {[%emt 0:01:00]} Rd7 {[%emt 0:00:21]} 37. Ra7+ {[%emt 0:01:46]} Kc8 {[%emt 0:00:01]} 38. Ra8+ {[%emt 0:04:41]} Kb7 {[%emt 0:00:13]} 39. Rh8 {[%emt 0:00:55]} g6 {[%emt 0:00:07]} 40. Rh7 {[%emt 0:00:52]} Kc8 {[%emt 0:00:41]} 41. b6 {[%emt 0:01:52]} Bd8 {[%emt 0:01:53]} 42. Kf3 {[%emt 0:04:03]} Rb7 {[%emt 0:00:36]} 43. Rh8 {[%emt 0:01:16]} Rd7 {[%emt 0:00:46]} 44. Ke4 {[%emt 0:02:29]} Kb7 {[%emt 0:00:56]} 45. Bd6 {[%emt 0:01:54]} Kxb6 {[%emt 0:00:38]} 46. Kd5 {[%emt 0:00:26]} Bc7 {[%emt 0:01:27]} 47. Re8 {[%emt 0:01:07]} h4 {[%emt 0:00:38]} 48. Rh8 {[%emt 0:00:26]} g5 {[%emt 0:00:36]} 49. Rh5 {[%emt 0:00:43]} Bd8 {[%emt 0:00:56]} 50. f3 {[%emt 0:00:06]} Kb5 {[%emt 0:01:44]} 51. Rh8 {[%emt 0:00:11]} Bc7 {[%emt 0:00:31]} 52. Rg8 {[%emt 0:00:17]} Bd8 {[%emt 0:00:31]} 53. e6 {[%emt 0:00:39]} fxe6+ {[%emt 0:00:27]} 54. Kxe6 {[%emt 0:00:06]} Rh7 {[%emt 0:00:37]} 55. Rxd8 {[%emt 0:00:10]} h3 {[%emt 0:00:04]} 56. Rb8+ {[%emt 0:01:16]} Kc4 {[%emt 0:00:05]} 57. Bh2 {[%emt 0:00:45]} Kd3 {[%emt 0:00:19]} 58. Kf5 {[%emt 0:00:50]} Ke2 {[%emt 0:00:36]} 59. Kxg5 {[%emt 0:00:42]} Kxf3 {[%emt 0:00:01]} 60. b5 {[%emt 0:00:35]} Rg7+ {[%emt 0:00:32]} 61. Kh4 {[%emt 0:00:31]} Rh7+ {[%emt 0:00:02]} 62. Kg5 {[%emt 0:00:05]} Rg7+ {[%emt 0:00:02]} 63. Kf6 {[%emt 0:00:10]} Rg2 {[%emt 0:00:13]} 64. Be5 {[%emt 0:00:08]} Ke4 {[%emt 0:01:54]} 65. b6 {[%emt 0:01:17]} Kd5 {[%emt 0:00:02]} 66. Bc7 {[%emt 0:00:52]} Kc6 {[%emt 0:00:22]} 67. Rh8 {[%emt 0:00:10]} h2 {[%emt 0:01:03]} 68. Rh6 {[%emt 0:00:19]} Re2 {[%emt 0:01:19]} 69. Kf5+ {[%emt 0:00:18]} Kb7 {[%emt 0:00:03]} 70. Bxh2 {[%emt 0:00:21]} Re1 {[%emt 0:01:13]} 71. Bc7 {[%emt 0:00:22]} Re2 {[%emt 0:00:02]} 72. Re6 {[%emt 0:00:18]} Rd2 {[%emt 0:00:19]} 73. Ke5 {[%emt 0:00:05]} Rd1 {[%emt 0:00:05]} 74. Rd6 {[%emt 0:00:06]} Rb1 {[%emt 0:00:22]} 75. Rd4 {[%emt 0:00:15]} Rb3 {[%emt 0:00:29]} 76. Kd5 {[%emt 0:00:14]} Rb1 {[%emt 0:00:03]} 77. Kc5 {[%emt 0:00:14]} Rc1+ {[%emt 0:00:23]} 78. Rc4 {[%emt 0:00:08]} Rb1 {[%emt 0:00:05]} 79. Rb4 {[%emt 0:01:02]} Rc1+ {[%emt 0:00:02]} 80. Kb5 {[%emt 0:00:06]} Rh1 {[%emt 0:00:14]} 81. Bd6 {[%emt 0:00:14]} Ra1 {[%emt 0:01:21]} 82. Rf4 {[%emt 0:00:37]} Rb1+ {[%emt 0:00:03]} 83. Bb4 {[%emt 0:00:05]} 1-0

[Event "Czech Open-E Teams 2022"]
[Site "Pardubice"]
[Date "2022.07.17"]
[Round "6.39"]
[White "Maul, Maik"]
[Black "Formanek, Martin"]
[Result "1-0"]
[ECO "A45"]
[WhiteElo "1568"]
[BlackElo "2233"]
[Annotator "ChessBase"]
[PlyCount "99"]
[EventDate "2022.07.14"]
[EventType "team-tourn"]
[EventCountry "CZE"]
[SourceTitle "playchess.com"]
[Source "ChessBase"]
[SourceQuality "1"]
[TimeControl "5400+30"]

1. d4 {[%emt 0:00:13]} Nf6 {[%emt 0:00:00]} 2. Nc3 {[%emt 0:00:07]} d5 {[%emt 0:00:00]} 3. Bf4 {[%emt 0:01:49]} e6 {[%emt 0:00:15]} 4. e3 {[%emt 0:02:02]} Be7 {[%emt 0:02:13]} 5. Nb5 {[%emt 0:00:32]} Na6 {[%emt 0:02:07]} 6. Nf3 {[%emt 0:01:54]} O-O {[%emt 0:01:40]} 7. Bd3 {[%emt 0:05:58]} c6 {[%emt 0:00:30]} 8. Nc3 {[%emt 0:01:34]} Nb4 {[%emt 0:02:51]} 9. Ne2 {[%emt 0:01:50]} Nxd3+ {[%emt 0:00:26]} 10. Qxd3 c5 {[%emt 0:07:22]} 11. c3 {[%emt 0:00:00]} Qb6 {[%emt 0:00:51]} 12. Qc2 {[%emt 0:00:00]} Bd7 {[%emt 0:00:26]} 13. a4 {[%emt 0:08:26]} Rac8 {[%emt 0:02:54]} 14. Ne5 {[%emt 0:03:35]} Be8 {[%emt 0:05:20]} 15. O-O {[%emt 0:07:34]} Nh5 {[%emt 0:04:53]} 16. Rfc1 {[%emt 0:08:12]} f6 {[%emt 0:02:58]} 17. Nd3 c4 18. Ne1 {[%emt 0:04:11]} g5 {[%emt 0:08:29]} 19. Bg3 {[%emt 0:00:57]} Bg6 {[%emt 0:00:28]} 20. Qd2 {[%emt 0:01:07]} a5 {[%emt 0:01:16]} 21. h3 {[%emt 0:05:55]} Nxg3 {[%emt 0:02:22]} 22. Nxg3 {[%emt 0:00:13]} Bd6 {[%emt 0:00:18]} 23. Ne2 {[%emt 0:02:55]} Bb8 {[%emt 0:04:10]} 24. Rd1 {[%emt 0:03:59]} h6 {[%emt 0:03:59]} 25. Nf3 {[%emt 0:05:17]} Rcd8 {[%emt 0:05:02]} 26. Re1 {[%emt 0:06:22]} Qc7 {[%emt 0:03:18]} 27. Ng3 {[%emt 0:06:55]} Qh7 {[%emt 0:01:30]} 28. Ne2 {[%emt 0:01:18]} h5 {[%emt 0:03:14]} 29. h4 {[%emt 0:04:35]} e5 {[%emt 0:19:46]} 30. dxe5 {[%emt 0:01:36]} g4 {[%emt 0:00:07]} 31. Nfd4 {[%emt 0:00:43]} fxe5 {[%emt 0:00:20]} 32. Ne6 {[%emt 0:01:19]} Qe7 {[%emt 0:00:47]} 33. Nxf8 {[%emt 0:01:32]} Kxf8 {[%emt 0:00:07]} 34. Ng3 {[%emt 0:04:17]} Qxh4 {[%emt 0:01:06]} 35. e4 {[%emt 0:00:50]} d4 {[%emt 0:00:57]} 36. cxd4 {[%emt 0:02:28]} exd4 {[%emt 0:00:05]} 37. Qh6+ {[%emt 0:01:34]} Kf7 {[%emt 0:00:14]} 38. e5 {[%emt 0:00:07]} Rg8 {[%emt 0:01:32]} 39. Qf4+ {[%emt 0:01:02]} Kg7 {[%emt 0:00:40]} 40. Qxd4 {[%emt 0:00:33]} Rd8 {[%emt 0:01:31]} 41. Qxc4 {[%emt 0:01:27]} Ba7 {[%emt 0:00:15]} 42. Qc7+ {[%emt 0:01:11]} Kh6 {[%emt 0:00:31]} 43. e6 {[%emt 0:00:58]} Rf8 {[%emt 0:01:15]} 44. Re2 {[%emt 0:00:44]} Bb8 {[%emt 0:00:25]} 45. Qc5 {[%emt 0:00:45]} Rxf2 {[%emt 0:01:58]} 46. Rxf2 {[%emt 0:03:46]} Bxg3 {[%emt 0:00:13]} 47. Rd1 {[%emt 0:00:24]} Qh2+ {[%emt 0:06:57]} 48. Kf1 {[%emt 0:00:04]} Bxf2 {[%emt 0:00:23]} 49. Qf8+ {[%emt 0:00:28]} Kg5 {[%emt 0:00:18]} 50. Rd5+ {[%emt 0:00:12]} 1-0

[Event "Czech Open-E Teams 2022"]
[Site "Pardubice"]
[Date "2022.07.17"]
[Round "6.40"]
[White "Dvorak, Jan"]
[Black "Brunner, Alexander"]
[Result "1-0"]
[ECO "D31"]
[WhiteElo "2194"]
[BlackElo "1991"]
[Annotator "ChessBase"]
[PlyCount "52"]
[EventDate "2022.07.14"]
[EventType "team-tourn"]
[EventCountry "CZE"]
[SourceTitle "playchess.com"]
[Source "ChessBase"]
[SourceQuality "1"]
[TimeControl "5400+30"]

1. d4 {[%emt 0:00:04]} d5 {[%emt 0:00:13]} 2. c4 {[%emt 0:00:08]} e6 {[%emt 0:00:24]} 3. Nc3 {[%emt 0:00:10]} f5 {[%emt 0:00:24]} 4. Nf3 {[%emt 0:00:22]} c6 {[%emt 0:00:21]} 5. Bf4 {[%emt 0:00:12]} Nf6 {[%emt 0:00:45]} 6. e3 {[%emt 0:00:14]} Be7 {[%emt 0:00:54]} 7. Bd3 {[%emt 0:00:24]} O-O {[%emt 0:00:55]} 8. Qc2 {[%emt 0:01:16]} Ne4 {[%emt 0:01:20]} 9. h3 {[%emt 0:02:51]} Bd7 {[%emt 0:05:40]} 10. g4 {[%emt 0:05:04]} Be8 {[%emt 0:11:32]} 11. Ke2 {[%emt 0:13:39]} g5 {[%emt 0:10:14]} 12. Bh2 {[%emt 0:10:59]} Bf6 {[%emt 0:10:09]} 13. Raf1 {[%emt 0:05:14]} Bg6 {[%emt 0:04:11]} 14. Ne5 {[%emt 0:12:01]} Bxe5 {[%emt 0:09:37]} 15. Bxe5 {[%emt 0:00:40]} Nd7 {[%emt 0:01:23]} 16. Bh2 {[%emt 0:00:43]} Qe7 {[%emt 0:23:53]} 17. f3 {[%emt 0:05:49]} Nxc3+ {[%emt 0:01:17]} 18. Qxc3 {[%emt 0:00:19]} c5 {[%emt 0:01:02]} 19. gxf5 {[%emt 0:09:20]} Bxf5 {[%emt 0:07:16]} 20. h4 {[%emt 0:04:03]} Bxd3+ {[%emt 0:02:10]} 21. Qxd3 {[%emt 0:03:14]} gxh4 {[%emt 0:00:28]} 22. Rfg1+ {[%emt 0:04:06]} Kh8 {[%emt 0:00:07]} 23. cxd5 {[%emt 0:04:52]} exd5 {[%emt 0:00:24]} 24. dxc5 {[%emt 0:00:08]} Qxc5 {[%emt 0:01:09]} 25. Be5+ {[%emt 0:00:37]} Rf6 {[%emt 0:01:22]} 26. Rxh4 {[%emt 0:03:31]} Qc4 {[%emt 0:02:38]} 1-0

[Event "Czech Open-E Teams 2022"]
[Site "Pardubice"]
[Date "2022.07.17"]
[Round "6.41"]
[White "Kratochvil, Karel"]
[Black "Dolezal, Radoslav"]
[Result "1/2-1/2"]
[ECO "E20"]
[WhiteElo "2163"]
[BlackElo "2392"]
[Annotator "ChessBase"]
[PlyCount "41"]
[EventDate "2022.07.14"]
[EventType "team-tourn"]
[EventCountry "CZE"]
[SourceTitle "playchess.com"]
[Source "ChessBase"]
[SourceQuality "1"]
[TimeControl "5400+30"]

1. d4 {[%emt 0:00:04]} Nf6 {[%emt 0:00:16]} 2. c4 {[%emt 0:00:05]} e6 {[%emt 0:00:18]} 3. Nc3 {[%emt 0:00:10]} Bb4 {[%emt 0:00:56]} 4. f3 {[%emt 0:01:05]} d5 {[%emt 0:03:35]} 5. a3 {[%emt 0:00:25]} Bxc3+ {[%emt 0:00:15]} 6. bxc3 {[%emt 0:00:04]} O-O {[%emt 0:00:14]} 7. cxd5 {[%emt 0:00:04]} exd5 {[%emt 0:00:08]} 8. e3 {[%emt 0:00:11]} b6 {[%emt 0:12:16]} 9. Bd3 {[%emt 0:01:27]} Ba6 {[%emt 0:01:42]} 10. Bb1 {[%emt 0:01:33]} Nh5 {[%emt 0:04:09]} 11. Qc2 {[%emt 0:05:53]} f5 {[%emt 0:00:13]} 12. Qf2 {[%emt 0:04:23]} Nc6 {[%emt 0:02:43]} 13. Ne2 {[%emt 0:01:56]} Na5 {[%emt 0:00:31]} 14. O-O {[%emt 0:02:46]} Nb3 {[%emt 0:08:00]} 15. Ra2 {[%emt 0:03:39]} Qg5 {[%emt 0:00:52]} 16. Re1 {[%emt 0:03:32]} Rae8 {[%emt 0:12:58]} 17. Rb2 {[%emt 0:03:40]} Bc4 {[%emt 0:01:34]} 18. Ba2 {[%emt 0:04:36]} Nxc1 {[%emt 0:00:40]} 19. Nxc1 {[%emt 0:00:05]} Bxa2 {[%emt 0:00:05]} 20. Rxa2 {[%emt 0:00:41]} f4 {[%emt 0:00:58]} 21. Rae2 {[%emt 0:03:11]} 1/2-1/2

[Event "Czech Open-E Teams 2022"]
[Site "Pardubice"]
[Date "2022.07.17"]
[Round "6.42"]
[White "Soural, Jan"]
[Black "Buran, Jaroslav"]
[Result "1/2-1/2"]
[ECO "A43"]
[WhiteElo "2119"]
[BlackElo "2038"]
[Annotator "TA"]
[PlyCount "27"]
[EventDate "2022.07.14"]
[EventType "team-tourn"]
[EventCountry "CZE"]
[SourceTitle "playchess.com"]
[Source "ChessBase"]
[SourceQuality "1"]
[TimeControl "5400+30"]

{[%evp 15,27,56,56,58,69,68,96,96,98,80,90,71,67,70]} 1. d4 {[%emt 0:03:21]} Nf6 {[%emt 0:00:15]} 2. c4 {[%emt 0:00:07]} c5 {[%emt 0:00:26]} 3. d5 {[%emt 0:00:06]} d6 {[%emt 0:00:56]} 4. Nc3 {[%emt 0:00:11]} e5 {[%emt 0:00:28]} 5. e4 {[%emt 0:01:30]} Be7 {[%emt 0:00:20]} 6. h3 {[%emt 0:06:34]} Nbd7 {[%emt 0:01:00]} 7. Nf3 $1 {[%emt 0:01:52] 7.Nf3 scores better than 7.Bd3.} Nf8 {[%emt 0:00:11]} 8. Bd3 {[%emt 0:08:31]} Ng6 {[%emt 0:00:12]} 9. g3 {[%emt 0:00:06] A56: Czech Benoni.} a6 {[%emt 0:02:21]} 10. a4 {[%emt 0:00:59]} b6 {[%emt 0:00:09] [#]} 11. Bd2 $146 {[%emt 0:06:33] White is more active.} ({Predecessor:} 11. Be3 Bd7 12. Nd2 Qc8 13. Bf1 h5 14. Rb1 h4 15. g4 Nh7 16. Be2 Bg5 17. Nf1 {½-½ (43) Horvath,I (2071)-Karrer,P Gyongyos 2003}) 11... Bd7 {[%emt 0:00:23]} 12. Qb1 {[%emt 0:00:29]} Rb8 {[%emt 0:01:02]} 13. Ng1 {[%emt 0:09:26]} Qc8 {[%emt 0:01:38]} 14. b3 {[%emt 0:00:56] Black got outplayed after the opening.  Weighted Error Value: White=0.08 (flawless) /Black=0.09 (flawless)} 1/2-1/2

[Event "Czech Open-E Teams 2022"]
[Site "Pardubice"]
[Date "2022.07.17"]
[Round "6.43"]
[White "Janicek, Lubomir"]
[Black "Postupa, Pavel"]
[Result "0-1"]
[ECO "D96"]
[WhiteElo "1828"]
[BlackElo "2235"]
[Annotator "ChessBase"]
[PlyCount "56"]
[EventDate "2022.07.14"]
[EventType "team-tourn"]
[EventCountry "CZE"]
[SourceTitle "playchess.com"]
[Source "ChessBase"]
[SourceQuality "1"]
[TimeControl "5400+30"]

1. d4 {[%emt 0:00:03]} Nf6 {[%emt 0:00:15]} 2. Nf3 {[%emt 0:00:20]} g6 {[%emt 0:00:06]} 3. c4 {[%emt 0:00:57]} Bg7 {[%emt 0:00:03]} 4. Nc3 {[%emt 0:00:34]} d5 {[%emt 0:00:07]} 5. Qb3 {[%emt 0:01:09]} dxc4 {[%emt 0:07:09]} 6. Qxc4 {[%emt 0:00:09]} O-O {[%emt 0:00:04]} 7. Bf4 {[%emt 0:02:09]} Na6 {[%emt 0:00:34]} 8. e3 {[%emt 0:01:28]} c5 {[%emt 0:07:49]} 9. Be2 {[%emt 0:04:18]} Be6 {[%emt 0:10:13]} 10. Qb5 {[%emt 0:03:52]} Qb6 {[%emt 0:02:50]} 11. O-O {[%emt 0:02:18]} Nd5 {[%emt 0:01:16]} 12. Be5 {[%emt 0:11:41]} Bxe5 {[%emt 0:03:09]} 13. Nxe5 {[%emt 0:01:57]} Rfd8 {[%emt 0:01:54]} 14. Nxd5 {[%emt 0:06:36]} Bxd5 {[%emt 0:02:53]} 15. Qxb6 {[%emt 0:02:14]} axb6 {[%emt 0:00:07]} 16. Bxa6 {[%emt 0:04:50]} Rxa6 {[%emt 0:05:50]} 17. dxc5 {[%emt 0:06:58]} bxc5 {[%emt 0:05:21]} 18. Rfd1 {[%emt 0:02:28]} Rad6 {[%emt 0:03:50]} 19. h3 {[%emt 0:01:55]} Be6 {[%emt 0:10:39]} 20. Rdc1 {[%emt 0:01:16]} b6 {[%emt 0:00:30]} 21. Rc2 {[%emt 0:00:39]} Rd2 {[%emt 0:00:26]} 22. Rac1 {[%emt 0:02:10]} Bxa2 {[%emt 0:03:14]} 23. Nc6 {[%emt 0:01:11]} Rxc2 {[%emt 0:00:38]} 24. Rxc2 {[%emt 0:00:06]} Rd1+ {[%emt 0:00:04]} 25. Kh2 {[%emt 0:00:05]} Kf8 {[%emt 0:00:07]} 26. b4 {[%emt 0:00:04]} Bd5 {[%emt 0:00:21]} 27. Nxe7 {[%emt 0:01:35]} Kxe7 {[%emt 0:00:33]} 28. bxc5 {[%emt 0:00:07]} b5 {[%emt 0:00:33]} 0-1